[Event "Early-Titled-Tuesday-Blitz-February-20-2024"]
[Site "Chess.com"]
[Date "2024.02.20"]
[Round "1"]
[White "paladin_ll"]
[Black "averageFM"]
[Result "0-1"]
[WhiteElo "2219"]
[BlackElo "2598"]
[TimeControl "180+1"]
[EndTime "8:08:57 PST"]
[Termination "averageFM won on time"]

1. Nf3 {[%clk 0:03:00]} 1... d5 {[%clk 0:02:56.1]} 2. c4 {[%clk 0:02:59]} 2...
e6 {[%clk 0:02:54.5]} 3. cxd5 {[%clk 0:02:43.6]} 3... exd5 {[%clk 0:02:54]} 4.
d4 {[%clk 0:01:39.7]} 4... h6 {[%clk 0:02:49.3]} 5. Nc3 {[%clk 0:01:39.3]} 5...
Nf6 {[%clk 0:02:48.5]} 6. Bf4 {[%clk 0:01:39.4]} 6... Bd6 {[%clk 0:02:47.2]} 7.
Bxd6 {[%clk 0:01:39.1]} 7... Qxd6 {[%clk 0:02:46.9]} 8. e3 {[%clk 0:01:40]} 8...
Bf5 {[%clk 0:02:41.3]} 9. Ne5 {[%clk 0:01:37.7]} 9... Nbd7 {[%clk 0:02:33.5]}
10. Nxd7 {[%clk 0:01:37.1]} 10... Qxd7 {[%clk 0:02:31.1]} 11. Bd3 {[%clk
0:01:38]} 11... O-O {[%clk 0:02:29]} 12. O-O {[%clk 0:01:37.5]} 12... c6 {[%clk
0:02:23.5]} 13. a3 {[%clk 0:01:36.5]} 13... Ne8 {[%clk 0:02:10.9]} 14. Bxf5
{[%clk 0:01:32.5]} 14... Qxf5 {[%clk 0:02:10.4]} 15. Qf3 {[%clk 0:01:33.4]}
15... Qxf3 {[%clk 0:02:08.5]} 16. gxf3 {[%clk 0:01:34.3]} 16... Nd6 {[%clk
0:02:07.9]} 17. b3 {[%clk 0:01:33.9]} 17... f5 {[%clk 0:02:05.5]} 18. f4 {[%clk
0:01:33.3]} 18... Rae8 {[%clk 0:02:03.9]} 19. Kg2 {[%clk 0:01:30.9]} 19... Re6
{[%clk 0:02:01.2]} 20. Kf3 {[%clk 0:01:30.5]} 20... Kf7 {[%clk 0:01:54.2]} 21.
Rg1 {[%clk 0:01:30.3]} 21... Kf6 {[%clk 0:01:51.9]} 22. h4 {[%clk 0:01:28.9]}
22... Rc8 {[%clk 0:01:33.9]} 23. Rac1 {[%clk 0:01:22.7]} 23... Kf7 {[%clk
0:01:31.8]} 24. a4 {[%clk 0:01:19.4]} 24... Ree8 {[%clk 0:01:27.5]} 25. h5
{[%clk 0:01:16.9]} 25... a5 {[%clk 0:01:25.5]} 26. Rg6 {[%clk 0:01:15.6]} 26...
Re6 {[%clk 0:01:20.8]} 27. Rcg1 {[%clk 0:01:14.8]} 27... Rxg6 {[%clk 0:01:19.3]}
28. Rxg6 {[%clk 0:01:14]} 28... Ne8 {[%clk 0:01:18.7]} 29. Rg1 {[%clk 0:01:13]}
29... Nf6 {[%clk 0:01:18.7]} 30. Rh1 {[%clk 0:01:13.2]} 30... Rb8 {[%clk
0:01:09.5]} 31. Kg3 {[%clk 0:01:10.4]} 31... b5 {[%clk 0:01:08.2]} 32. Rc1
{[%clk 0:01:07.8]} 32... Nxh5+ {[%clk 0:01:00.6]} 33. Kf3 {[%clk 0:01:07.3]}
33... Nf6 {[%clk 0:00:57.4]} 34. Ra1 {[%clk 0:01:05]} 34... bxa4 {[%clk
0:00:53.8]} 35. Nxa4 {[%clk 0:01:01.1]} 35... Rxb3 {[%clk 0:00:53]} 36. Nc5
{[%clk 0:01:02]} 36... Rb2 {[%clk 0:00:53]} 37. Rxa5 {[%clk 0:01:00.5]} 37...
Ng4 {[%clk 0:00:50.7]} 38. Ra7+ {[%clk 0:00:59.2]} 38... Kf6 {[%clk 0:00:38.4]}
39. Nd3 {[%clk 0:00:58.9]} 39... Rd2 {[%clk 0:00:36.6]} 40. Ne5 {[%clk
0:00:56.7]} 40... Rxf2+ {[%clk 0:00:31.6]} 41. Kg3 {[%clk 0:00:57.6]} 41... Re2
{[%clk 0:00:31.8]} 42. Rf7+ {[%clk 0:00:56.9]} 42... Ke6 {[%clk 0:00:31.6]} 43.
Rxg7 {[%clk 0:00:56.8]} 43... Rxe3+ {[%clk 0:00:31.4]} 44. Kg2 {[%clk
0:00:57.2]} 44... Nxe5 {[%clk 0:00:29.5]} 45. fxe5 {[%clk 0:00:56.7]} 45... f4
{[%clk 0:00:29.6]} 46. Rg6+ {[%clk 0:00:57.6]} 46... Kf5 {[%clk 0:00:29.6]} 47.
Rxc6 {[%clk 0:00:56.3]} 47... Ke4 {[%clk 0:00:28.9]} 48. Kf2 {[%clk 0:00:57.2]}
48... Kxd4 {[%clk 0:00:27.4]} 49. e6 {[%clk 0:00:56.7]} 49... Ke4 {[%clk
0:00:18.8]} 50. Ra6 {[%clk 0:00:55.6]} 50... Kf5 {[%clk 0:00:18.9]} 51. Ra5
{[%clk 0:00:54.5]} 51... Kxe6 {[%clk 0:00:18.9]} 52. Ra6+ {[%clk 0:00:54.4]}
52... Ke5 {[%clk 0:00:19.2]} 53. Rxh6 {[%clk 0:00:55.3]} 53... d4 {[%clk
0:00:19.6]} 54. Rh8 {[%clk 0:00:55.5]} 54... d3 {[%clk 0:00:19.3]} 55. Re8+
{[%clk 0:00:56.4]} 55... Kd4 {[%clk 0:00:19.7]} 56. Rd8+ {[%clk 0:00:57.3]}
56... Kc3 {[%clk 0:00:20.1]} 57. Rb8 {[%clk 0:00:57.2]} 57... Re2+ {[%clk
0:00:19.3]} 58. Kf3 {[%clk 0:00:56.9]} 58... Rb2 {[%clk 0:00:19]} 59. Rc8+
{[%clk 0:00:56.7]} 59... Kb3 {[%clk 0:00:17.5]} 60. Kxf4 {[%clk 0:00:55.6]}
60... d2 {[%clk 0:00:17.6]} 61. Rd8 {[%clk 0:00:56.1]} 61... Kc2 {[%clk
0:00:17.7]} 62. Rc8+ {[%clk 0:00:56.2]} 62... Kb1 {[%clk 0:00:18]} 63. Rd8
{[%clk 0:00:55.2]} 63... Kc1 {[%clk 0:00:18.3]} 64. Rc8+ {[%clk 0:00:53.9]}
64... Rc2 {[%clk 0:00:18.1]} 65. Rd8 {[%clk 0:00:53.5]} 65... d1=Q {[%clk
0:00:18.1]} 66. Rxd1+ {[%clk 0:00:53.4]} 66... Kxd1 {[%clk 0:00:18.5]} 67. Kf3
{[%clk 0:00:02.4]} 67... Kd2 {[%clk 0:00:19.4]} 68. Kf4 {[%clk 0:00:02.5]} 68...
Rc3 {[%clk 0:00:18.8]} 69. Kf5 {[%clk 0:00:03.4]} 69... Kd3 {[%clk 0:00:18.7]}
0-1

[Event "Early-Titled-Tuesday-Blitz-February-20-2024"]
[Site "Chess.com"]
[Date "2024.02.20"]
[Round "1"]
[White "Ariadna_Atreides"]
[Black "CristianS27"]
[Result "1/2-1/2"]
[WhiteElo "2154"]
[BlackElo "2564"]
[TimeControl "180+1"]
[EndTime "8:08:59 PST"]
[Termination "Game drawn - insufficient material"]

1. d4 {[%clk 0:03:00.9]} 1... Nf6 {[%clk 0:02:54.4]} 2. Nf3 {[%clk 0:03:01.4]}
2... g6 {[%clk 0:02:54.8]} 3. c4 {[%clk 0:02:58.9]} 3... Bg7 {[%clk 0:02:53]} 4.
Nc3 {[%clk 0:02:59.4]} 4... O-O {[%clk 0:02:52.8]} 5. e4 {[%clk 0:02:58.6]} 5...
d6 {[%clk 0:02:52.8]} 6. h3 {[%clk 0:02:58.1]} 6... c5 {[%clk 0:02:52.4]} 7. d5
{[%clk 0:02:57.2]} 7... e6 {[%clk 0:02:51.6]} 8. Be3 {[%clk 0:02:56.1]} 8...
exd5 {[%clk 0:02:50.4]} 9. exd5 {[%clk 0:02:54.8]} 9... Bf5 {[%clk 0:02:49.5]}
10. Bd3 {[%clk 0:02:52.7]} 10... Bxd3 {[%clk 0:02:49.2]} 11. Qxd3 {[%clk
0:02:52.2]} 11... Nbd7 {[%clk 0:02:50.1]} 12. O-O {[%clk 0:02:51]} 12... a6
{[%clk 0:02:44.3]} 13. a4 {[%clk 0:02:50]} 13... Re8 {[%clk 0:02:44.1]} 14. Bf4
{[%clk 0:02:48]} 14... Qc7 {[%clk 0:02:41.7]} 15. Rfe1 {[%clk 0:02:44.1]} 15...
Rxe1+ {[%clk 0:02:37.8]} 16. Rxe1 {[%clk 0:02:43.1]} 16... Re8 {[%clk
0:02:38.7]} 17. Rxe8+ {[%clk 0:02:25.9]} 17... Nxe8 {[%clk 0:02:39.6]} 18. Qe3
{[%clk 0:02:24.2]} 18... Qd8 {[%clk 0:02:30.6]} 19. Bg5 {[%clk 0:01:57.5]} 19...
Bf6 {[%clk 0:02:09.6]} 20. Ne4 {[%clk 0:01:48.2]} 20... Bxg5 {[%clk 0:01:43.8]}
21. Nfxg5 {[%clk 0:01:47.9]} 21... Ndf6 {[%clk 0:01:39.3]} 22. Qf4 {[%clk
0:01:43.7]} 22... Qe7 {[%clk 0:01:34.7]} 23. Qh4 {[%clk 0:01:19]} 23... h5
{[%clk 0:01:28.8]} 24. Qf4 {[%clk 0:01:03.7]} 24... Kg7 {[%clk 0:01:07.8]} 25.
b3 {[%clk 0:01:00.8]} 25... Nd7 {[%clk 0:00:47]} 26. h4 {[%clk 0:00:40]} 26...
Ne5 {[%clk 0:00:47]} 27. g3 {[%clk 0:00:26.2]} 27... Nd3 {[%clk 0:00:41.8]} 28.
Qe3 {[%clk 0:00:20.7]} 28... Ne5 {[%clk 0:00:42.1]} 29. Qf4 {[%clk 0:00:19.9]}
29... Qd7 {[%clk 0:00:38.5]} 30. Kg2 {[%clk 0:00:18.1]} 30... b6 {[%clk
0:00:26.8]} 31. a5 {[%clk 0:00:17.4]} 31... bxa5 {[%clk 0:00:26.2]} 32. Nxc5
{[%clk 0:00:16.5]} 32... Qe7 {[%clk 0:00:17]} 33. Nce4 {[%clk 0:00:15.1]} 33...
a4 {[%clk 0:00:17.2]} 34. bxa4 {[%clk 0:00:13.1]} 34... Nxc4 {[%clk 0:00:17.8]}
35. Nc3 {[%clk 0:00:12.5]} 35... Ne5 {[%clk 0:00:15.3]} 36. Qd4 {[%clk
0:00:12.5]} 36... Qf6 {[%clk 0:00:13.5]} 37. Nce4 {[%clk 0:00:11.9]} 37... Qf5
{[%clk 0:00:03]} 38. f4 {[%clk 0:00:12.5]} 38... f6 {[%clk 0:00:02.2]} 39. fxe5
{[%clk 0:00:12.8]} 39... fxe5 {[%clk 0:00:02.8]} 40. Qc3 {[%clk 0:00:11.2]}
40... Nf6 {[%clk 0:00:02.7]} 41. Qc7+ {[%clk 0:00:10.9]} 41... Kh6 {[%clk
0:00:03.3]} 42. Nf7+ {[%clk 0:00:10.1]} 42... Kg7 {[%clk 0:00:03.4]} 43. Nfxd6+
{[%clk 0:00:10.2]} 43... Qd7 {[%clk 0:00:04.1]} 44. Qxd7+ {[%clk 0:00:09.1]}
44... Nxd7 {[%clk 0:00:05]} 45. Nb7 {[%clk 0:00:08.2]} 45... Kf7 {[%clk
0:00:04.8]} 46. Nbc5 {[%clk 0:00:08.3]} 46... Nb6 {[%clk 0:00:04.3]} 47. a5
{[%clk 0:00:06.7]} 47... Nxd5 {[%clk 0:00:04.5]} 48. Nxa6 {[%clk 0:00:06.5]}
48... Ne3+ {[%clk 0:00:02.1]} 49. Kf3 {[%clk 0:00:05.9]} 49... Nc4 {[%clk
0:00:03]} 50. Nac5 {[%clk 0:00:03.8]} 50... Nxa5 {[%clk 0:00:03.5]} 51. Nd3
{[%clk 0:00:03.8]} 51... Nc4 {[%clk 0:00:03.5]} 52. Nec5 {[%clk 0:00:02.8]}
52... Kf6 {[%clk 0:00:03.1]} 53. Ke4 {[%clk 0:00:02.9]} 53... Nd6+ {[%clk
0:00:02.5]} 54. Kd5 {[%clk 0:00:02.1]} 54... Nf5 {[%clk 0:00:03.4]} 55. Nxe5
{[%clk 0:00:02.3]} 55... Nxg3 {[%clk 0:00:03.4]} 56. Ncd7+ {[%clk 0:00:03.2]}
56... Kf5 {[%clk 0:00:03.5]} 57. Kd6 {[%clk 0:00:03.5]} 57... Ne4+ {[%clk
0:00:03.6]} 58. Ke7 {[%clk 0:00:03.4]} 58... Nd2 {[%clk 0:00:03.1]} 59. Kf7
{[%clk 0:00:03.2]} 59... Kf4 {[%clk 0:00:02.2]} 60. Nxg6+ {[%clk 0:00:02.6]}
60... Kg4 {[%clk 0:00:03.1]} 61. Nde5+ {[%clk 0:00:02.1]} 61... Kg3 {[%clk
0:00:02.8]} 62. Kf6 {[%clk 0:00:02.6]} 62... Ne4+ {[%clk 0:00:03]} 63. Kg7
{[%clk 0:00:02.6]} 63... Nd2 {[%clk 0:00:01.7]} 64. Kh6 {[%clk 0:00:03.3]} 64...
Ne4 {[%clk 0:00:01.5]} 65. Kxh5 {[%clk 0:00:04.2]} 65... Nf6+ {[%clk 0:00:02]}
66. Kg5 {[%clk 0:00:04.1]} 66... Nd5 {[%clk 0:00:02.9]} 67. Kf5 {[%clk
0:00:04.2]} 67... Ne3+ {[%clk 0:00:02.6]} 68. Ke4 {[%clk 0:00:03.8]} 68... Ng4
{[%clk 0:00:02.1]} 69. h5 {[%clk 0:00:04.6]} 69... Nf6+ {[%clk 0:00:02]} 70. Kf5
{[%clk 0:00:04.2]} 70... Nxh5 {[%clk 0:00:02.9]} 71. Kg5 {[%clk 0:00:04.5]}
71... Ng7 {[%clk 0:00:03]} 72. Kf6 {[%clk 0:00:04.2]} 72... Ne8+ {[%clk
0:00:03.9]} 73. Ke7 {[%clk 0:00:04.3]} 73... Nc7 {[%clk 0:00:04.8]} 74. Kd7
{[%clk 0:00:04.4]} 74... Nb5 {[%clk 0:00:05.4]} 75. Kc6 {[%clk 0:00:04.7]} 75...
Nc3 {[%clk 0:00:06.3]} 76. Kc5 {[%clk 0:00:04.9]} 76... Ne2 {[%clk 0:00:07.2]}
77. Kd5 {[%clk 0:00:04.6]} 77... Nf4+ {[%clk 0:00:08.1]} 78. Nxf4 {[%clk
0:00:04]} 1/2-1/2

[Event "Early-Titled-Tuesday-Blitz-February-20-2024"]
[Site "Chess.com"]
[Date "2024.02.20"]
[Round "1"]
[White "Schattman"]
[Black "Abund"]
[Result "0-1"]
[WhiteElo "2435"]
[BlackElo "2774"]
[TimeControl "180+1"]
[EndTime "8:09:07 PST"]
[Termination "Abund won on time"]

1. d4 {[%clk 0:03:00.9]} 1... d5 {[%clk 0:02:59.9]} 2. Nf3 {[%clk 0:02:58.8]}
2... Nf6 {[%clk 0:02:59.8]} 3. Bf4 {[%clk 0:02:59.3]} 3... e6 {[%clk 0:02:56.4]}
4. e3 {[%clk 0:02:58.6]} 4... Bd6 {[%clk 0:02:56.9]} 5. Nbd2 {[%clk 0:02:57.9]}
5... O-O {[%clk 0:02:56]} 6. c3 {[%clk 0:02:58.3]} 6... c5 {[%clk 0:02:55.7]} 7.
dxc5 {[%clk 0:02:58.6]} 7... Bxc5 {[%clk 0:02:55.3]} 8. Bd3 {[%clk 0:02:55]}
8... Nc6 {[%clk 0:02:54.9]} 9. O-O {[%clk 0:02:53.8]} 9... Bd6 {[%clk
0:02:50.5]} 10. Bxd6 {[%clk 0:02:49.3]} 10... Qxd6 {[%clk 0:02:51.4]} 11. e4
{[%clk 0:02:49.9]} 11... e5 {[%clk 0:02:44.5]} 12. exd5 {[%clk 0:02:44.6]} 12...
Qxd5 {[%clk 0:02:44.7]} 13. Bc4 {[%clk 0:02:32.9]} 13... Qa5 {[%clk 0:02:35.4]}
14. Nb3 {[%clk 0:02:29.6]} 14... Qc7 {[%clk 0:02:35.2]} 15. h3 {[%clk
0:02:29.1]} 15... Bf5 {[%clk 0:02:31.1]} 16. Qe2 {[%clk 0:02:29.3]} 16... h6
{[%clk 0:02:28.1]} 17. Rad1 {[%clk 0:02:19.4]} 17... Rad8 {[%clk 0:02:25.9]} 18.
a4 {[%clk 0:02:18.7]} 18... Bh7 {[%clk 0:02:08.5]} 19. Rfe1 {[%clk 0:02:17.6]}
19... e4 {[%clk 0:02:06]} 20. Nfd4 {[%clk 0:01:48]} 20... Ne5 {[%clk 0:02:05.9]}
21. Nd2 {[%clk 0:01:47.7]} 21... a6 {[%clk 0:01:50.3]} 22. Ba2 {[%clk
0:01:46.4]} 22... Nd3 {[%clk 0:01:50.2]} 23. Rf1 {[%clk 0:01:45.6]} 23... Nxb2
{[%clk 0:01:50.3]} 24. Rc1 {[%clk 0:01:38.2]} 24... Nd3 {[%clk 0:01:50.7]} 25.
Rb1 {[%clk 0:01:34.3]} 25... Qxc3 {[%clk 0:01:48.7]} 26. N2b3 {[%clk 0:01:30]}
26... Rxd4 {[%clk 0:01:44.9]} 27. Nxd4 {[%clk 0:01:29.7]} 27... Qxd4 {[%clk
0:01:45.8]} 28. Rxb7 {[%clk 0:01:29]} 28... Qxa4 {[%clk 0:01:44.5]} 29. Ra1
{[%clk 0:01:21]} 29... Qd4 {[%clk 0:01:42.6]} 30. Rab1 {[%clk 0:01:16.5]} 30...
Bg6 {[%clk 0:01:41.3]} 31. Qe3 {[%clk 0:01:10.5]} 31... Qa4 {[%clk 0:01:24.1]}
32. Bb3 {[%clk 0:01:03]} 32... Qc6 {[%clk 0:01:23.1]} 33. Ba2 {[%clk 0:00:56.2]}
33... a5 {[%clk 0:01:20.1]} 34. Rb8 {[%clk 0:00:54.1]} 34... Rxb8 {[%clk
0:01:18]} 35. Rxb8+ {[%clk 0:00:52.2]} 35... Kh7 {[%clk 0:01:17.8]} 36. Qd2
{[%clk 0:00:37.9]} 36... a4 {[%clk 0:01:08.7]} 37. Rb1 {[%clk 0:00:25.7]} 37...
Qc5 {[%clk 0:01:01.5]} 38. Rb7 {[%clk 0:00:19.4]} 38... Nd5 {[%clk 0:00:56]} 39.
Bxd5 {[%clk 0:00:18.3]} 39... Qxd5 {[%clk 0:00:56]} 40. Ra7 {[%clk 0:00:18]}
40... Qd4 {[%clk 0:00:54.4]} 41. Qe3 {[%clk 0:00:15.7]} 41... Qc4 {[%clk
0:00:43.4]} 42. h4 {[%clk 0:00:15.9]} 42... h5 {[%clk 0:00:38.6]} 43. g4 {[%clk
0:00:15.9]} 43... hxg4 {[%clk 0:00:34.5]} 44. Ra5 {[%clk 0:00:15]} 44... f6
{[%clk 0:00:30.5]} 45. h5 {[%clk 0:00:14.7]} 45... Bf7 {[%clk 0:00:30.6]} 46.
Ra7 {[%clk 0:00:14.6]} 46... Bxh5 {[%clk 0:00:21.5]} 47. Qb6 {[%clk 0:00:11.6]}
47... Qc1+ {[%clk 0:00:15.9]} 48. Kg2 {[%clk 0:00:09.8]} 48... Qf4 {[%clk
0:00:16.5]} 49. Qe3 {[%clk 0:00:08.9]} 49... Qxe3 {[%clk 0:00:16.2]} 50. fxe3
{[%clk 0:00:08.7]} 50... Be8 {[%clk 0:00:15.9]} 51. Ra8 {[%clk 0:00:07]} 51...
Bc6 {[%clk 0:00:16.3]} 52. Ra6 {[%clk 0:00:06.2]} 52... Ne5 {[%clk 0:00:17.2]}
53. Kg3 {[%clk 0:00:05.6]} 53... Kg6 {[%clk 0:00:16.3]} 54. Kf4 {[%clk
0:00:05.7]} 54... Kh6 {[%clk 0:00:16.8]} 55. Ra7 {[%clk 0:00:06.2]} 55... Kg6
{[%clk 0:00:16.4]} 56. Ra5 {[%clk 0:00:04.8]} 56... Kf7 {[%clk 0:00:16.6]} 57.
Ra7+ {[%clk 0:00:04.5]} 57... Bd7 {[%clk 0:00:16.1]} 58. Ra5 {[%clk 0:00:04.1]}
58... Nc4 {[%clk 0:00:13.6]} 59. Ra7 {[%clk 0:00:03.1]} 59... Ke6 {[%clk
0:00:13.1]} 60. Kxe4 {[%clk 0:00:03.2]} 60... Nd6+ {[%clk 0:00:13.4]} 61. Kf4
{[%clk 0:00:03.2]} 61... g5+ {[%clk 0:00:14.1]} 62. Kxg4 {[%clk 0:00:02.4]}
62... Bc6 {[%clk 0:00:13.5]} 63. Kg3 {[%clk 0:00:02.5]} 63... Nf5+ {[%clk
0:00:13.3]} 64. Kf2 {[%clk 0:00:02]} 64... Nd6 {[%clk 0:00:13.7]} 65. Ra6 {[%clk
0:00:02.3]} 65... Bb5 {[%clk 0:00:13.4]} 66. Ra5 {[%clk 0:00:01.7]} 66... Kd5
{[%clk 0:00:13.5]} 67. Ra7 {[%clk 0:00:01.8]} 67... Kc4 {[%clk 0:00:12.9]} 68.
Kg3 {[%clk 0:00:02.2]} 68... Kb3 {[%clk 0:00:13]} 69. Kg4 {[%clk 0:00:02.7]}
69... a3 {[%clk 0:00:13.2]} 70. Kh5 {[%clk 0:00:03.1]} 70... a2 {[%clk
0:00:13.1]} 71. Kg6 {[%clk 0:00:03.5]} 71... Ba4 {[%clk 0:00:13.6]} 72. Rb7+
{[%clk 0:00:02.1]} 72... Nb5 {[%clk 0:00:13.6]} 73. Kxf6 {[%clk 0:00:03]} 73...
a1=Q+ {[%clk 0:00:13.3]} 74. Kxg5 {[%clk 0:00:03.9]} 74... Qe5+ {[%clk 0:00:14]}
75. Kg4 {[%clk 0:00:03.7]} 75... Qe4+ {[%clk 0:00:14.5]} 0-1

[Event "Early-Titled-Tuesday-Blitz-February-20-2024"]
[Site "Chess.com"]
[Date "2024.02.20"]
[Round "1"]
[White "AlexPapasimakopoulos"]
[Black "koncheto"]
[Result "1-0"]
[WhiteElo "2778"]
[BlackElo "2441"]
[TimeControl "180+1"]
[EndTime "8:09:16 PST"]
[Termination "AlexPapasimakopoulos won by resignation"]

1. d4 {[%clk 0:02:58.9]} 1... Nf6 {[%clk 0:02:59.3]} 2. c4 {[%clk 0:02:57.4]}
2... e6 {[%clk 0:02:59.3]} 3. Nc3 {[%clk 0:02:53.5]} 3... c5 {[%clk 0:02:50.3]}
4. d5 {[%clk 0:02:50.3]} 4... exd5 {[%clk 0:02:51.2]} 5. cxd5 {[%clk 0:02:50.3]}
5... d6 {[%clk 0:02:51.8]} 6. Nf3 {[%clk 0:02:48.8]} 6... g6 {[%clk 0:02:52]} 7.
Bf4 {[%clk 0:02:48.2]} 7... a6 {[%clk 0:02:50.5]} 8. a4 {[%clk 0:02:47.1]} 8...
Qe7 {[%clk 0:02:49.1]} 9. e3 {[%clk 0:02:27.4]} 9... Bg4 {[%clk 0:02:44.6]} 10.
Qb3 {[%clk 0:02:22.3]} 10... Nbd7 {[%clk 0:01:59.5]} 11. Nd2 {[%clk 0:02:08.1]}
11... Ne5 {[%clk 0:01:41.4]} 12. Bxe5 {[%clk 0:01:47.6]} 12... dxe5 {[%clk
0:01:41.1]} 13. h3 {[%clk 0:01:45.8]} 13... Bc8 {[%clk 0:01:33.3]} 14. Nc4
{[%clk 0:01:42.4]} 14... Qc7 {[%clk 0:01:25.1]} 15. Nb6 {[%clk 0:01:02]} 15...
Rb8 {[%clk 0:01:22.4]} 16. a5 {[%clk 0:00:53.6]} 16... Bg7 {[%clk 0:01:06.4]}
17. Rd1 {[%clk 0:00:38.9]} 17... O-O {[%clk 0:01:02.5]} 18. Be2 {[%clk
0:00:32.6]} 18... Rd8 {[%clk 0:00:44.5]} 19. O-O {[%clk 0:00:31.9]} 19... Ne8
{[%clk 0:00:44.5]} 20. Rd2 {[%clk 0:00:27.2]} 20... Nd6 {[%clk 0:00:43.5]} 21.
Rc1 {[%clk 0:00:24.4]} 21... Bd7 {[%clk 0:00:31]} 22. Nxd7 {[%clk 0:00:23]}
22... Rxd7 {[%clk 0:00:20.7]} 23. Qa3 {[%clk 0:00:17.7]} 23... Bf8 {[%clk
0:00:19.1]} 24. e4 {[%clk 0:00:17.4]} 24... c4 {[%clk 0:00:12]} 25. Qa2 {[%clk
0:00:11.2]} 25... Rc8 {[%clk 0:00:07.5]} 26. Rdc2 {[%clk 0:00:11.4]} 26... Nb5
{[%clk 0:00:06.9]} 27. Nxb5 {[%clk 0:00:10.5]} 27... axb5 {[%clk 0:00:07.8]} 28.
Rd1 {[%clk 0:00:06.5]} 28... Bb4 {[%clk 0:00:06.1]} 29. Ra1 {[%clk 0:00:06.7]}
29... Ra8 {[%clk 0:00:05.4]} 30. Qb1 {[%clk 0:00:06.7]} 30... Rxa5 {[%clk
0:00:05.5]} 31. Rxa5 {[%clk 0:00:06.8]} 31... Qxa5 {[%clk 0:00:06.4]} 32. g3
{[%clk 0:00:07]} 32... Bc5 {[%clk 0:00:06.7]} 33. Qc1 {[%clk 0:00:06.6]} 33...
Bd4 {[%clk 0:00:06.6]} 34. h4 {[%clk 0:00:04.9]} 34... Qb4 {[%clk 0:00:05.7]}
35. h5 {[%clk 0:00:05.2]} 35... Qe7 {[%clk 0:00:05.7]} 36. h6 {[%clk 0:00:05.3]}
36... Qf6 {[%clk 0:00:05.3]} 37. Bf1 {[%clk 0:00:04.6]} 37... Qf3 {[%clk
0:00:04.7]} 38. Bg2 {[%clk 0:00:04.1]} 38... Qxg3 {[%clk 0:00:04.6]} 39. b3
{[%clk 0:00:04.6]} 39... c3 {[%clk 0:00:03.8]} 40. Qa1 {[%clk 0:00:04.4]} 40...
Qg5 {[%clk 0:00:03.2]} 41. Qa8+ {[%clk 0:00:03.9]} 41... Qd8 {[%clk 0:00:03.8]}
42. Qxd8+ {[%clk 0:00:03.8]} 42... Rxd8 {[%clk 0:00:04.2]} 43. b4 {[%clk
0:00:04.5]} 43... Rc8 {[%clk 0:00:04.3]} 44. Bf1 {[%clk 0:00:05]} 44... Ra8
{[%clk 0:00:04]} 45. Bxb5 {[%clk 0:00:05.2]} 45... Ra1+ {[%clk 0:00:04.4]} 46.
Kg2 {[%clk 0:00:05.1]} 46... Rb1 {[%clk 0:00:04.4]} 47. d6 {[%clk 0:00:04.1]}
47... Rxb4 {[%clk 0:00:05]} 48. d7 {[%clk 0:00:04.5]} 48... Bb6 {[%clk
0:00:05.2]} 49. Rxc3 {[%clk 0:00:05.1]} 49... Kf8 {[%clk 0:00:02.8]} 50. Rc8+
{[%clk 0:00:05]} 50... Ke7 {[%clk 0:00:03.2]} 51. Re8+ {[%clk 0:00:05.7]} 51...
Kf6 {[%clk 0:00:03.2]} 52. d8=Q+ {[%clk 0:00:05.6]} 52... Bxd8 {[%clk
0:00:03.2]} 53. Rxd8 {[%clk 0:00:06.5]} 53... Rxb5 {[%clk 0:00:03.8]} 54. Rh8
{[%clk 0:00:05.7]} 54... Rb6 {[%clk 0:00:03.4]} 55. Rxh7 {[%clk 0:00:05.6]}
55... g5 {[%clk 0:00:04]} 56. Rh8 {[%clk 0:00:05.6]} 56... Kg6 {[%clk
0:00:04.2]} 57. Kg3 {[%clk 0:00:05.9]} 57... Rb4 {[%clk 0:00:03.4]} 58. f3
{[%clk 0:00:06.2]} 58... Rb6 {[%clk 0:00:03.2]} 59. h7 {[%clk 0:00:06.3]} 59...
Kg7 {[%clk 0:00:03]} 60. Re8 {[%clk 0:00:07]} 60... Kxh7 {[%clk 0:00:03.1]} 61.
Rxe5 {[%clk 0:00:07.7]} 61... Kg6 {[%clk 0:00:03.4]} 62. Rc5 {[%clk 0:00:07.9]}
62... Rc6 {[%clk 0:00:03.1]} 63. Rd5 {[%clk 0:00:07.5]} 63... Rc8 {[%clk
0:00:02.7]} 64. Rb5 {[%clk 0:00:07.1]} 64... Rb8 {[%clk 0:00:02.8]} 65. Rb6+
{[%clk 0:00:07.6]} 65... Kg7 {[%clk 0:00:02.9]} 66. Kg4 {[%clk 0:00:07.8]} 66...
f6 {[%clk 0:00:03.4]} 67. Kf5 {[%clk 0:00:08.3]} 67... Rc8 {[%clk 0:00:01.8]}
68. Rxb7+ {[%clk 0:00:08.2]} 68... Kh6 {[%clk 0:00:02.2]} 69. Kxf6 {[%clk
0:00:08.1]} 69... Rf8+ {[%clk 0:00:02.8]} 70. Rf7 {[%clk 0:00:07.9]} 70... Rc8
{[%clk 0:00:01.6]} 71. e5 {[%clk 0:00:08.1]} 71... Rc6+ {[%clk 0:00:01.5]} 72.
e6 {[%clk 0:00:08.3]} 72... Rc3 {[%clk 0:00:02.2]} 73. Ke7 {[%clk 0:00:08.8]}
73... Re3 {[%clk 0:00:02.2]} 74. Kd7 {[%clk 0:00:09.3]} 74... Rd3+ {[%clk
0:00:02.8]} 75. Ke8 {[%clk 0:00:09.8]} 75... Kg6 {[%clk 0:00:03.3]} 76. e7
{[%clk 0:00:09.4]} 76... Ra3 {[%clk 0:00:03.9]} 77. Rf8 {[%clk 0:00:09.7]} 77...
Ra8+ {[%clk 0:00:03.3]} 78. Kd7 {[%clk 0:00:10]} 78... Ra7+ {[%clk 0:00:03.9]}
79. Kd6 {[%clk 0:00:10.5]} 79... Ra6+ {[%clk 0:00:04.3]} 80. Kd5 {[%clk
0:00:11.1]} 80... Ra5+ {[%clk 0:00:04.7]} 81. Kd4 {[%clk 0:00:11.3]} 81... Ra4+
{[%clk 0:00:05.2]} 82. Ke3 {[%clk 0:00:11.2]} 82... Ra3+ {[%clk 0:00:05.8]} 83.
Kf2 {[%clk 0:00:11.4]} 83... Ra8 {[%clk 0:00:05.8]} 84. Rxa8 {[%clk 0:00:10.8]}
1-0